Cogmind - Beta 17 @@@ ROGUE MODE // 2026.07.10 @ 23:48:23 Player: woegarden Result: Destroyed by Y-45 Defender with Heavy Assault Rifle Performance ------------- Evolutions (1) 500 Regions Visited (3) 600 Robots Destroyed (17) 85 Value Destroyed (334) 334 Prototype IDs (0) 0 Alien Tech Used (0) 0 Bonus (0) 0 TOTAL SCORE: 1519 Bonus ------- None Cogmind --------- Core Integrity 0/400 Matter 432/500 Energy 100/100 System Corruption 0% Temperature Cool (9) Movement Rolling (105) Ox1 Location -9/Materials Parts ------- > --- POWER (1) -------- (None) > --- PROPULSION (2) --- Armored Wheel > --- UTILITY (4) ------ Medium Storage Unit High-capacity Matter Pod Advanced Targeting Computer ECM Suite > --- WEAPON (2) ------- (None) > --- INVENTORY (10) --- Compact Wheel Compact Wheel Compact Wheel Compact Wheel Compact Wheel EM Pulse Gun Heavy Assault Rifle Grenade Launcher Rocket Launcher Peak State ------------ > --- POWER ------------ Ion Engine > --- PROPULSION ------- Armored Wheel Armored Wheel > --- UTILITY ---------- Medium Storage Unit High-capacity Matter Pod Advanced Targeting Computer ECM Suite > --- WEAPON ----------- Plasma Cutter Mining Claw > --- INVENTORY -------- Light Ion Engine Compact Wheel Compact Wheel Compact Wheel Compact Wheel Compact Wheel EM Pulse Gun Assault Rifle Grenade Launcher Rocket Launcher [Rating: 15] Favorites ----------- Power Ion Engine Engine Ion Engine Power Core Light Nuclear Core Propulsion Aluminum Leg Treads Light Treads Leg Aluminum Leg Wheel Compact Wheel Utility Medium Storage Unit Device ECM Suite Storage Medium Storage Unit Processor Advanced Targeting Computer Weapon Mining Claw Energy Gun Medium Laser Ballistic Gun Assault Rifle Special Weapon Plasma Cutter Slashing Weapon Mining Claw Build | -11 -10 -10 -9 ------- Run | Yrd Mat Min Mat Slots Evolved 2 | . . . 2 Power . | . . . . Propulsion . | . . . . Utility 2 | . . . 2 Weapon . | . . . . Parts Attached 18 | . 2 3 13 Power 4 | . . . 4 Engine 3 | . . . 3 Core 1 | . . . 1 Reactor . | . . . . Propulsion 6 | . . . 6 Treads 2 | . . . 2 Leg . | . . . . Wheel 4 | . . . 4 Hover . | . . . . Flight . | . . . . Utility 4 | . 2 . 2 Device 1 | . 1 . . Storage 2 | . 1 . 1 Processor 1 | . . . 1 Hackware . | . . . . Protection . | . . . . Artifact . | . . . . Weapon 4 | . . 3 1 Energy Gun . | . . . . Energy Cannon . | . . . . Ballistic Gun 1 | . . 1 . Ballistic Cannon . | . . . . Launcher . | . . . . Special Weapon 1 | . . . 1 Impact Weapon . | . . . . Slashing Weapon 2 | . . 2 . Piercing Weapon . | . . . . Special Melee Weapon . | . . . . Unidentified Prototypes . | . . . . Parts Lost 9 | . . . 9 Power 4 | . . . 4 Propulsion 2 | . . . 2 Utility . | . . . . Weapon 3 | . . . 3 Highest Loss Streak 4 | . . . 4 To Critical Strikes . | . . . . Average Backups 9 | 6 7 9 9 Power . | 1 1 1 . Propulsion 3 | 4 2 2 4 Utility . | . . 1 . Weapon 3 | 1 3 4 4 Tool/Special . | . . . . Unused Backups 11 | . . . 11 Power . | . . . . Propulsion 5 | . . . 5 Utility . | . . . . Weapon 6 | . . . 6 Tool/Special . | . . . . Average Slot Usage (%) 88 | . 95 89 86 Engine 10 | . 14 14 8 Treads 1 | . . . 1 Leg 10 | . 28 28 2 Wheel 11 | . . . 16 Device 8 | . 9 4 8 Storage 17 | . 14 14 19 Processor 7 | . . . 10 Energy Gun 3 | . 14 4 . Ballistic Gun 3 | . 14 10 . Slashing Weapon 12 | . . 14 16 Peak Build Rating 15 | 6 7 7 15 Average Rating 10 | 6 6 7 11 On Entrance 6 | 6 6 7 7 Avg Prop Armor Cover (%) 13 | . . . 13 Naked Turns . | . . . . Heaviest Build 24 | 14 21 21 24 Greatest Support 40 | 20 20 20 40 Greatest Overweight (x) 1 | . 1 1 1 Average Overweight (x) . | . . . . Largest Inventory Capacity 10 | 8 10 10 10 Average Capacity 9 | 8 8 10 10 Most Carried 10 | 6 8 10 10 Average Carried 9 | 6 7 9 9 Final Capacity 10 | 8 10 10 10 Final Carried 10 | 6 8 10 9 Class Distribution -------------------- 100% | Mutant Dominant Class ---------------- Mutant | -10/Materials Mutant | -10/Mines Mutant | -9/Materials Resources | -11 -10 -10 -9 ----------- Run | Yrd Mat Min Mat Matter Collected 494 | 221 . 29 244 Remotely . | . . . . Salvage Created 569 | 66 . 42 461 Parts 36 | 2 . 2 32 Haulers Intercepted 1 | . . . 1 Recyclers Shooed . | . . . . Parts Field Recycled . | . . . . Retrieved Matter . | . . . . Parts Self-Destructed . | . . . . Prevented . | . . . . Parts Restored . | . . . . Kills | -11 -10 -10 -9 ------- Run | Yrd Mat Min Mat Combat Hostiles Destroyed 13 | . . 3 10 Melee 11 | . . 3 8 Cannons 2 | . . . 2 Classes Destroyed 7 | 1 . 1 5 Worker 1 | . . . 1 Builder 1 | . . . 1 Hauler 1 | . . . 1 Recycler 1 | 1 . . . Swarmer 7 | . . 3 4 Grunt 3 | . . . 3 Sentry 3 | . . . 3 Best Kill Streak 4 | 1 . 3 4 Combat Bots Only 3 | . . 3 3 Max Kills in Single Turn 1 | 1 . 1 1 Gunslinging . | . . . . Exploded . | . . . . Melee 1 | . . 1 1 Uniques/NPCs Destroyed . | . . . . Combat | -11 -10 -10 -9 -------- Run | Yrd Mat Min Mat Hostile Shots Fired 159 | . . 18 141 Missed 33 | . . 3 30 Hits 126 | . . 15 111 Projectile 126 | . . 15 111 Critical Strikes 2 | . . . 2 Damage Taken 1378 | . . 122 1256 Core 431 | . . 27 404 Absorbed by Shields . | . . . . Core Remaining (%) 94 | 100 . 89 . Volleys Fired 16 | 7 . 1 8 Largest 2 | 2 . 2 1 Hottest 70 | 70 . 40 20 Shots Fired 24 | 14 . 2 8 Gun 16 | 14 . 2 . Cannon . | . . . . Launcher . | . . . . Special 8 | . . . 8 Kinetic 9 | 7 . 2 . Thermal 15 | 7 . . 8 Explosive . | . . . . Electromagnetic . | . . . . Robot Hit Streak 7 | 7 . 1 7 Robot Miss Streak 1 | 1 . 1 1 Penetration Max . | . . . . Secondary Targets . | . . . . Shots Hit Robots 43 | 10 . 5 28 Core Hits 20 | 2 . 3 15 Critical Kills . | . . . . Critical Parts Destroyed . | . . . . Critical Strikes . | . . . . Melee Attacks 39 | . . 7 32 Impact . | . . . . Slashing 39 | . . 7 32 Piercing . | . . . . Sneak Attacks 3 | . . . 3 Combat Hostiles . | . . . . Follow-up Attacks 2 | . . . 2 Damage Inflicted 869 | 127 . 110 632 Guns 137 | 127 . 10 . Cannons . | . . . . Explosions . | . . . . Melee 637 | . . 96 541 Ramming 21 | . . 4 17 Kinetic 61 | 51 . 10 . Thermal 150 | 76 . . 74 Explosive . | . . . . Electromagnetic . | . . . . Impact . | . . . . Slashing 637 | . . 96 541 Piercing . | . . . . Highest Corruption . | . . . . Average Corruption . | . . . . Corruption Purged . | . . . . Corruption Blocked . | . . . . Overload Shots . | . . . . Overflow Damage 8 | . . 8 . Projectiles . | . . . . Explosions . | . . . . Melee 8 | . . 8 . Knockbacks 1 | . . 1 . Impact 1 | . . 1 . Kinetic . | . . . . Secondary . | . . . . Self-Inflicted Damage 8 | . . . 8 Shots . | . . . . Rammed 4 | . . . 4 Targets Rammed 5 | . . 1 4 Kicked 1 | . . 1 . Crushed . | . . . . Highest Temperature 63 | 63 . . 13 Average Temperature 30 | 32 . . 9 Received Heat Transfer 399 | . . . 399 Siege Activations . | . . . . Martial Activations . | . . . . Shielding Activations . | . . . . Robots Disrupted . | . . . . Combat Hostiles . | . . . . Robots Corrupted . | . . . . Combat Hostiles . | . . . . Parts Fried . | . . . . Impact Corruptions . | . . . . Robots Melted . | . . . . Combat Hostiles . | . . . . Parts Melted . | . . . . Heat Transferred 481 | 222 . . 259 Parts Sabotaged . | . . . . Parts Stolen . | . . . . Parts Stripped . | . . . . Power Chain Reactions . | . . . . Alert | -11 -10 -10 -9 ------- Run | Yrd Mat Min Mat Maximum Alert Level . | . . . . Low Security (%) 100 | 100 100 100 100 Level 1 . | . . . . Level 2 . | . . . . Level 3 . | . . . . Level 4 . | . . . . Level 5 . | . . . . High Security . | . . . . Max Security . | . . . . Peak Influence 139 | 5 . 75 139 Initial 29 | . . . 29 Average 59 | . . 23 85 Influence Increases 437 | 5 . 85 347 Destroy 0b10 Robot/C 260 | . . 60 200 Destroy 0b10 Robot/NC 20 | 5 . . 15 Destroy Leader 62 | . . 10 52 Successful Hack 5 | . . . 5 Lose Combat Pursuer 90 | . . 15 75 Influence Decreases 389 | 5 . 10 374 Entered New Map 46 | . . . 46 Time Decay 253 | 5 . 10 238 Lost Part 90 | . . . 90 Squads Dispatched 2 | . . . 2 Investigation . | . . . . Extermination . | . . . . Reinforcement 2 | . . . 2 Assault . | . . . . Garrison . | . . . . Intercept . | . . . . Searches Triggered . | . . . . Construction Impeded . | . . . . Haulers Reinforced . | . . . . Active Scanning Responses . | . . . . Cargo Convoy Interrupts . | . . . . Stealth | -11 -10 -10 -9 --------- Run | Yrd Mat Min Mat Distress Signals 5 | . . 1 4 Communications Jammed . | . . . . Distress Signals . | . . . . Times Spotted 34 | . . 3 31 Peak Tracking Total 6 | . . 3 6 Tactical Retreats 9 | . . 1 8 ECM-based Alert Blocks 7 | . . . 7 Traps | -11 -10 -10 -9 ------- Run | Yrd Mat Min Mat Traps Triggered . | . . . . Indirectly . | . . . . Trap Hack Attempts . | . . . . Triggered . | . . . . Disarmed . | . . . . Reprogrammed . | . . . . Reused . | . . . . Traps Extracted . | . . . . Installed . | . . . . Triggered . | . . . . Machines | -11 -10 -10 -9 ---------- Run | Yrd Mat Min Mat Machines Disabled . | . . . . Max in Single Turn . | . . . . Machines Repaired . | . . . . Machines Dismantled . | . . . . Machines Sabotaged . | . . . . Overloaded Fab Kills . | . . . . Hacking | -11 -10 -10 -9 --------- Run | Yrd Mat Min Mat Machines Accessed 3 | . 1 . 2 Terminals 3 | . 1 . 2 Fabricators . | . . . . Repair Stations . | . . . . Recycling Units . | . . . . Scanalyzers . | . . . . Garrison Access . | . . . . Total Hacks 6 | . 1 . 5 Successful 3 | . . . 3 Failed 3 | . 1 . 2 Catastrophic 2 | . 1 . 1 Database Lockouts . | . . . . Manual . | . . . . Terminals 6 | . 1 . 5 Fabricators . | . . . . Repair Stations . | . . . . Recycling Units . | . . . . Scanalyzers . | . . . . Garrison Access . | . . . . Terminal Hacks 3 | . . . 3 Record 2 | . . . 2 Hauler Manifests 1 | . . . 1 Fabricator Hacks . | . . . . Repair Station Hacks . | . . . . Recycling Unit Hacks . | . . . . Scanalyzer . | . . . . Garrison Access Hacks . | . . . . Unauthorized Hacks . | . . . . Terminals . | . . . . Fabricators . | . . . . Repair Stations . | . . . . Recycling Units . | . . . . Scanalyzers . | . . . . Garrison Access . | . . . . Data Cores Recovered . | . . . . Used . | . . . . Hacking Detections 3 | . 1 . 2 Full Trace Events . | . . . . Feedback Events . | . . . . Feedback Blocked . | . . . . Robot Schematics Acquired . | . . . . Robots Built . | . . . . Authchips . | . . . . Time . | . . . . Total Robot Build Rating . | . . . . Part Schematics Acquired . | . . . . Parts Built . | . . . . Authchips . | . . . . Time . | . . . . Total Part Build Rating . | . . . . Part Studies Acquired . | . . . . Parts Repaired . | . . . . Time . | . . . . Parts Recycled . | . . . . Recycled Matter . | . . . . Retrieved Matter . | . . . . Retrieved Components . | . . . . Parts Scanalyzed . | . . . . Part Schematics Acquired . | . . . . Parts Damaged . | . . . . Bothacking | -11 -10 -10 -9 ------------ Run | Yrd Mat Min Mat Used RIF Installer . | . . . . Robots Hacked . | . . . . Non-combat . | . . . . Combat . | . . . . Robot Hacks Applied . | . . . . Relay Couplers Released . | . . . . Fabnet Peak Effective % . | . . . . Robots Rewired . | . . . . Allies Hacked . | . . . . Hacks Repelled . | . . . . Allies | -11 -10 -10 -9 -------- Run | Yrd Mat Min Mat Total Allies . | . . . . Largest Group . | . . . . Highest-Rated Group . | . . . . Highest-Rated Ally . | . . . . Total Orders . | . . . . Ally Attacks . | . . . . Total Damage . | . . . . Kills . | . . . . Allies Corrupted . | . . . . Allies Melted . | . . . . Intel | -11 -10 -10 -9 ------- Run | Yrd Mat Min Mat Active Infowar (turns) 360 | . 2 . 358 ECM 360 | . 2 . 358 Robot Analysis Total . | . . . . Derelict Logs Recovered . | . . . . Drone Launches . | . . . . Drone Recoveries . | . . . . Exploration | -11 -10 -10 -9 ------------- Run | Yrd Mat Min Mat Turns Passed 752 | 31 152 59 510 Spaces Moved 450 | 9 115 20 306 Core . | . . . . Treads 20 | . . . 20 Legs 174 | 9 115 20 30 Wheels 256 | . . . 256 Hover . | . . . . Flight . | . . . . Fastest Speed 90 | 120 120 120 90 Average Speed 111 | 120 126 134 104 Slowest Speed 190 | 120 190 190 190 Overloaded Moves . | . . . . Propulsion Burnouts . | . . . . Robots Hopped . | . . . . Potential Cave-ins . | . . . . Cave-ins Triggered . | . . . . Exploration Rate (%) 20 | 2 31 6 43 Regions Visited 3 Branch Regions 1 Pre-discovered Areas . | . . . . Known Exits Taken . | . . . . Unknown Exits Taken 3 | 1 1 1 . Scrap Searched . | . . . . Spaces Dug . | . . . . Terrain Destroyed . | . . . . Melee . | . . . . Projectile . | . . . . AOE . | . . . . Terrain Rammed . | . . . . Walls Destroyed . | . . . . Machines Disabled . | . . . . Actions | -11 -10 -10 -9 --------- Run | Yrd Mat Min Mat Total 599 | 15 123 36 425 Wait 50 | . . 4 46 Move 447 | 8 114 19 306 Hop . | . . . . Pick Up 13 | . 4 1 8 Fast Attach 8 | . 1 . 7 Attach 4 | . . . 4 Detach 1 | . . 1 . Swap 7 | . 1 3 3 Drop 14 | . 3 . 11 Fire 16 | 7 . 1 8 Melee 34 | . . 6 28 Ram 4 | . . . 4 Kick 1 | . . 1 . Crush . | . . . . Escape Stasis . | . . . . Rewire . | . . . . Trap . | . . . . Miscellaneous . | . . . . Route ------- -11/Scrapyard -10/Materials -10/Mines -9/Materials (discovered 1 exit: [*Sto]) History --------- Turn | Location | Event 22 | -11/Scrapyard | Discovered new exit (range 3) 32 | -11/Scrapyard | Entered Materials 157 | -10/Materials | Discovered new exit (range 11) 184 | -10/Materials | Entered Mines 191 | -10/Mines | Received a Rocket Launcher from a helpful Derelict 194 | -10/Mines | Met a Derelict bent on vengeance 221 | -10/Mines | Discovered new exit (range 6) 243 | -10/Mines | Entered Materials 243 | -9/Materials | Evolved 2 slots: Utility x2 306 | -9/Materials | Build established: Mutant 535 | -9/Materials | Core integrity fell below 50% 744 | -9/Materials | Core integrity fell below 20% 747 | -9/Materials | Discovered new exit (range 9) 753 | -9/Materials | Destroyed by Y-45 Defender with Heavy Assault Rifle Last Messages --------------- reinforcements to Terminal M003. 00678_ Acquired Plasma Cutter. 00688_ Ion Engine destroyed. 00693_ Y-45 Defender destroyed. 00696_ Acquired 57 matter. 00699_ Dropped Assault Rifle. 00699_ Acquired Hvy. Assault Rifle. 00708_ S-10 Pest destroyed. 00712_ Acquired 10 matter. 00725_ W-16 Scout sends out distress signal. 00727_ Plasma Cutter destroyed. 00736_ S-10 Pest destroyed. 00742_ Lgt. Ion Engine destroyed. 00745_ Mining Claw destroyed. 00747_ Arm. Wheel destroyed. 00747_ EXIT=FOUND 00747_ Slammed into G-34 Mercenary. 00747_ Destabilizing: Core damaged (-20). 00748_ Slammed into G-34 Mercenary. 00751_ Slammed into W-16 Scout. Map ----- +----------------------------------------------------+ | ?????????????????????????????????????????????????? | | ?????????????????????????????????????????????????? | | ?????????????????????????????????????????????????? | | ?????????????????????????????????????????????????? | | ?????????????????????????????????????????????????? | | ?????????????????????????????????????????????????? | | ?????????????????????????????????????????????????? | | ?????????????????????????????????????????????????? | | ?????????????????????????????????????????????????? | | ?????????????????????????????????????????????????? | | ????????????????????????? ???????????????????????? | | ????????????????????????? ???????????????????????? | | ????????????????????????? ???????????????????????? | | ????????????????????????? ???????????????????????? | | ????????????????????????? ???????????????????????? | | ????????????????????????? ???????????????????????? | | ??????????????????? ????? ???????????????????????? | | ??????????????????? ???## ##?????????????????????? | | ??????????????????? ??? #????????????????????? | | ??????????????????? ???? #????????????????????? | | ??????????????????? ???? < +????????????????????? | | ??????????????????? ???? ?????????????????????? | | ??????????????????? ???? ??????????????????????? | | ??????????????????# #####a#####??????????????????? | | ?????????????????? # """w""" #??????????????????? | | ??????????????????# # """@""" #??????????????????? | | ??????????????????# # """Y""" #??????????????????? | | ??????????????????# # % #??????????????????? | | ??????????????????# # g g #??????????????????? | | ??????????????????# # *% #??????????????????? | | ??????????????????+ + =* #??????????????????? | | ??????????????????# # [= ] #??????????????????? | | ??????????????????# ############???????###???????? | | ??????????????????# #?# #??????"""#???????? | | ??????????????????# #?# #######"T"####????? | | ??????????????????# #?# [# #????? | | ???????????###????#[#?# # ^ #????? | | ???????????# ??# #?# + #????? | | ???????????# #!### # ##??? | | ???????????#! "" + ! + # """ """ ?? | | ???????????# T" #=### # """ """ ??? | | ???????????#=* "??# #?# # """ """ ?? | | ???????????#=*????# #?########## #????? | | ???????????#??????# #??????????# #????? | | ??????????????????# #??????????# """ """ ###### | | ??????????????????# #??????????# """ """ # | | ?????????????? #### ############ """ """ # | | ????????????? # | | ????????????? # | | ????????????? # ! | +----------------------------------------------------+ Best States ------------- Heat Dissipation 28 Energy Generation 14 Energy Capacity 250 Matter Stores 428 Matter Capacity 500 Sight Range 16 Terrain Scan Density 10 ECM Strength 1 Evasion (%) 55 Targeting Accuracy 8 Recoil Reduction 2 Item Schematics ----------------- None Robot Schematics ------------------ None Fabricated ------------ Nothing Repaired ---------- Nothing Studied --------- None Alien Tech Used ----------------- None Achievements -------------- None Challenges ------------ None Game ------ Seed ThermalReflexNanovents Manual? 0 Play Time 00:16:07 Cumulative 114.5 hours Start 2026.07.10 @ 23:29:49 End 2026.07.10 @ 23:48:23 Sessions 1 Manual Loads 0 Difficulty Rogue Special Mode None Game No. 199 Rogue 153 Adventurer 45 Explorer 1 Win Type - Total 0 Types 0/0/0/0/0/0/0/0/0/0 Lore% 27 Gallery% 41 Achievement% 24 Wizard Run 0 Options --------- Layout 1 ASCII 0 Keyboard 0 Movement Mouse Keybinds 0 Fullscreen 0 Font 28/SmallcapsGlow Map View 50x40 Zoom Use 0% Tactical HUD 1 Map Filters NONE Filters LOW_CONTRAST(13,24,33)|BRIGHTNESS(90)|SATURATION(87) Steam 1 RUN: bf118ffb-9841-4c49-9c86-f4536582272d